Cogmind - Beta 16 @@@ ROGUE MODE // 2026.01.19 @ 18:41:17 Player: Kimbo Result: Destroyed by G-34 Mercenary with Small Laser Performance ------------- Evolutions (1) 500 Regions Visited (2) 400 Robots Destroyed (12) 60 Value Destroyed (268) 268 Prototype IDs (0) 0 Alien Tech Used (0) 0 Bonus (0) 0 TOTAL SCORE: 1228 Bonus ------- None Cogmind --------- Core Integrity 0/400 Matter 300/300 Energy 100/100 System Corruption 0% Temperature Cool (6) Movement Core (100) Ox1 Location -9/Materials Parts ------- > --- POWER (1) -------- (None) > --- PROPULSION (3) --- (None) > --- UTILITY (3) ------ Small Storage Unit > --- WEAPON (2) ------- (None) > --- INVENTORY (8) ---- Heat Sink Datajack Peak State ------------ > --- POWER ------------ Light Ion Engine > --- PROPULSION ------- Flight Unit Flight Unit Flight Unit > --- UTILITY ---------- Heat Sink Large Storage Unit > --- WEAPON ----------- Medium Laser Small Laser > --- INVENTORY -------- Heat Sink Light Assault Rifle Datajack [Rating: 8] Favorites ----------- Power Light Ion Engine Engine Light Ion Engine Propulsion Aluminum Leg Leg Aluminum Leg Wheel Wheel Flight Unit Flight Unit Utility Small Storage Unit Device Heat Sink Storage Small Storage Unit Weapon Medium Laser Energy Gun Medium Laser Build | -11 -10 -9 ------- Run | Yrd Mat Mat Slots Evolved 2 | . . 2 Power . | . . . Propulsion 1 | . . 1 Utility 1 | . . 1 Weapon . | . . . Parts Attached 18 | 6 5 7 Power 4 | 1 2 1 Engine 4 | 1 2 1 Core . | . . . Reactor . | . . . Propulsion 7 | 2 2 3 Treads . | . . . Leg 2 | . 2 . Wheel 2 | 2 . . Hover . | . . . Flight 3 | . . 3 Utility 4 | 1 1 2 Device 2 | . 1 1 Storage 2 | 1 . 1 Processor . | . . . Hackware . | . . . Protection . | . . . Artifact . | . . . Weapon 3 | 2 . 1 Energy Gun 3 | 2 . 1 Energy Cannon . | . . . Ballistic Gun . | . . . Ballistic Cannon . | . . . Launcher . | . . . Special Weapon . | . . . Impact Weapon . | . . . Slashing Weapon . | . . . Piercing Weapon . | . . . Special Melee Weapon . | . . . Unidentified Prototypes . | . . . Parts Lost 10 | . 1 9 Power 2 | . . 2 Propulsion 4 | . 1 3 Utility 1 | . . 1 Weapon 3 | . . 3 Highest Loss Streak 7 | . 1 7 To Critical Strikes . | . . . Average Backups 5 | 3 6 5 Power . | . . . Propulsion 2 | 2 3 1 Utility . | . . 1 Weapon 1 | . 1 1 Tool/Special . | . . . Unused Backups 4 | . . 4 Power . | . . . Propulsion 2 | . . 2 Utility . | . . . Weapon 1 | . . 1 Tool/Special 1 | . . 1 Average Slot Usage (%) 77 | . 86 58 Engine 11 | . 14 6 Leg 12 | . 14 9 Wheel 8 | . 13 . Flight 3 | . . 11 Device 3 | . 1 7 Storage 13 | . 14 11 Energy Gun 23 | . 28 13 Peak Build Rating 8 | 6 7 8 Average Rating 5 | 4 6 5 On Entrance 4 | . 6 6 Avg Prop Armor Cover (%) . | . . . Naked Turns . | . . . Heaviest Build 29 | 11 14 29 Greatest Support 20 | 20 20 20 Greatest Overweight (x) 2 | . . 2 Average Overweight (x) . | . . . Largest Inventory Capacity 15 | 8 8 15 Average Capacity 8 | 7 8 11 Most Carried 10 | 6 8 10 Average Carried 5 | 3 6 4 Final Capacity 8 | 8 8 8 Final Carried 8 | 6 8 2 Class Distribution -------------------- 100% | Mutant Dominant Class ---------------- Mutant | -10/Materials Mutant | -9/Materials Resources | -11 -10 -9 ----------- Run | Yrd Mat Mat Matter Collected 396 | 205 141 50 Remotely . | . . . Salvage Created 339 | . 239 100 Parts 19 | . 9 10 Haulers Intercepted . | . . . Recyclers Shooed . | . . . Parts Field Recycled . | . . . Retrieved Matter . | . . . Parts Self-Destructed . | . . . Prevented . | . . . Parts Restored . | . . . Kills | -11 -10 -9 ------- Run | Yrd Mat Mat Combat Hostiles Destroyed 11 | . 6 5 Guns 11 | . 6 5 Classes Destroyed 3 | . 1 2 Worker 1 | . . 1 Swarmer 5 | . . 5 Grunt 6 | . 6 . Best Kill Streak 5 | . 2 5 Combat Bots Only 4 | . 2 4 Max Kills in Single Turn 1 | . 1 1 Gunslinging . | . . . Exploded . | . . . Melee . | . . . Uniques/NPCs Destroyed . | . . . Combat | -11 -10 -9 -------- Run | Yrd Mat Mat Hostile Shots Fired 184 | . 58 126 Missed 50 | . 21 29 Hits 134 | . 37 97 Projectile 134 | . 37 97 Critical Strikes 1 | . . 1 Damage Taken 1278 | . 475 803 Core 546 | . 138 408 Absorbed by Shields . | . . . Core Remaining (%) 72 | 100 44 . Volleys Fired 50 | . 35 15 Largest 2 | . 2 2 Hottest 90 | . 90 90 Shots Fired 64 | . 47 17 Gun 64 | . 47 17 Cannon . | . . . Launcher . | . . . Special . | . . . Kinetic . | . . . Thermal 64 | . 47 17 Explosive . | . . . Electromagnetic . | . . . Robot Hit Streak 8 | . 8 4 Robot Miss Streak 5 | . 5 2 Penetration Max . | . . . Secondary Targets 1 | . 1 . Max Gunslinging Chain 1 | . 1 . Shots Hit Robots 38 | . 29 9 Core Hits 19 | . 13 6 Critical Kills . | . . . Critical Parts Destroyed . | . . . Critical Strikes 2 | . 2 . Burn 2 | . 2 . Melee Attacks . | . . . Impact . | . . . Slashing . | . . . Piercing . | . . . Sneak Attacks . | . . . Combat Hostiles . | . . . Follow-up Attacks . | . . . Damage Inflicted 451 | . 343 108 Guns 446 | . 338 108 Cannons . | . . . Explosions . | . . . Melee . | . . . Ramming 5 | . 5 . Kinetic . | . . . Thermal 446 | . 338 108 Explosive . | . . . Electromagnetic . | . . . Impact . | . . . Slashing . | . . . Piercing . | . . . Highest Corruption . | . . . Average Corruption . | . . . Corruption Purged . | . . . Corruption Blocked . | . . . Overload Shots . | . . . Overflow Damage . | . . . Projectiles . | . . . Explosions . | . . . Melee . | . . . Knockbacks . | . . . Impact . | . . . Kinetic . | . . . Secondary . | . . . Self-Inflicted Damage . | . . . Shots . | . . . Rammed . | . . . Targets Rammed 1 | . 1 . Kicked 1 | . 1 . Crushed . | . . . Highest Temperature 334 | . 334 . Average Temperature 198 | . 198 . Received Heat Transfer 342 | . 264 78 Effects 3 | . 3 . Energy Bleed 1 | . 1 . Interference 1 | . 1 . Matter Decay 1 | . 1 . Siege Activations . | . . . Martial Activations . | . . . Shielding Activations . | . . . Robots Disrupted . | . . . Combat Hostiles . | . . . Robots Corrupted . | . . . Combat Hostiles . | . . . Parts Fried . | . . . Impact Corruptions . | . . . Robots Melted . | . . . Combat Hostiles . | . . . Parts Melted 4 | . 3 1 Heat Transferred 1267 | . 970 297 Parts Sabotaged . | . . . Parts Stolen . | . . . Parts Stripped . | . . . Power Chain Reactions . | . . . Alert | -11 -10 -9 ------- Run | Yrd Mat Mat Maximum Alert Level . | . . . Low Security (%) 100 | 100 100 100 Level 1 . | . . . Level 2 . | . . . Level 3 . | . . . Level 4 . | . . . Level 5 . | . . . High Security . | . . . Max Security . | . . . Peak Influence 90 | . 90 70 Initial 13 | . . 13 Average 24 | . 32 24 Influence Increases 267 | . 152 115 Destroy 0b10 Robot/C 220 | . 120 100 Destroy 0b10 Robot/NC 5 | . . 5 Destroy Leader 40 | . 30 10 Successful Hack 2 | . 2 . Influence Decreases 267 | . 120 147 Entered New Map 19 | . . 19 Time Decay 173 | . 110 63 Lost Part 75 | . 10 65 Squads Dispatched 3 | . 3 . Investigation 1 | . 1 . Extermination . | . . . Reinforcement 2 | . 2 . Assault . | . . . Garrison . | . . . Intercept . | . . . Searches Triggered . | . . . Construction Impeded . | . . . Haulers Reinforced . | . . . Active Scanning Responses . | . . . Cargo Convoy Interrupts . | . . . Stealth | -11 -10 -9 --------- Run | Yrd Mat Mat Distress Signals 1 | . . 1 Communications Jammed . | . . . Distress Signals . | . . . Times Spotted 23 | . 12 11 Peak Tracking Total 5 | . 5 5 Tactical Retreats . | . . . Traps | -11 -10 -9 ------- Run | Yrd Mat Mat Traps Triggered 1 | . 1 . Indirectly . | . . . Trap Hack Attempts . | . . . Triggered . | . . . Disarmed . | . . . Reprogrammed . | . . . Reused . | . . . Traps Extracted . | . . . Installed . | . . . Triggered . | . . . Machines | -11 -10 -9 ---------- Run | Yrd Mat Mat Machines Disabled . | . . . Max in Single Turn . | . . . Machines Repaired . | . . . Machines Dismantled . | . . . Machines Sabotaged . | . . . Overloaded Fab Kills . | . . . Hacking | -11 -10 -9 --------- Run | Yrd Mat Mat Machines Accessed 2 | . 1 1 Terminals 2 | . 1 1 Fabricators . | . . . Repair Stations . | . . . Recycling Units . | . . . Scanalyzers . | . . . Garrison Access . | . . . Total Hacks 3 | . 2 1 Successful 2 | . 2 . Failed 1 | . . 1 Catastrophic 1 | . . 1 Database Lockouts . | . . . Manual . | . . . Terminals 3 | . 2 1 Fabricators . | . . . Repair Stations . | . . . Recycling Units . | . . . Scanalyzers . | . . . Garrison Access . | . . . Terminal Hacks 2 | . 2 . Record 1 | . 1 . Zone Layout 1 | . 1 . Fabricator Hacks . | . . . Repair Station Hacks . | . . . Recycling Unit Hacks . | . . . Scanalyzer . | . . . Garrison Access Hacks . | . . . Unauthorized Hacks . | . . . Terminals . | . . . Fabricators . | . . . Repair Stations . | . . . Recycling Units . | . . . Scanalyzers . | . . . Garrison Access . | . . . Data Cores Recovered . | . . . Used . | . . . Hacking Detections 1 | . . 1 Full Trace Events . | . . . Feedback Events . | . . . Feedback Blocked . | . . . Robot Schematics Acquired . | . . . Robots Built . | . . . Authchips . | . . . Time . | . . . Total Robot Build Rating . | . . . Part Schematics Acquired . | . . . Parts Built . | . . . Authchips . | . . . Time . | . . . Total Part Build Rating . | . . . Part Studies Acquired . | . . . Parts Repaired . | . . . Time . | . . . Parts Recycled . | . . . Recycled Matter . | . . . Retrieved Matter . | . . . Retrieved Components . | . . . Parts Scanalyzed . | . . . Part Schematics Acquired . | . . . Parts Damaged . | . . . Bothacking | -11 -10 -9 ------------ Run | Yrd Mat Mat Used RIF Installer . | . . . Robots Hacked . | . . . Non-combat . | . . . Combat . | . . . Robot Hacks Applied . | . . . Relay Couplers Released . | . . . Fabnet Peak Effective % . | . . . Robots Rewired . | . . . Allies Hacked . | . . . Hacks Repelled . | . . . Allies | -11 -10 -9 -------- Run | Yrd Mat Mat Total Allies . | . . . Largest Group . | . . . Highest-Rated Group . | . . . Highest-Rated Ally . | . . . Total Orders . | . . . Ally Attacks . | . . . Total Damage . | . . . Kills . | . . . Allies Corrupted . | . . . Allies Melted . | . . . Intel | -11 -10 -9 ------- Run | Yrd Mat Mat Active Infowar (turns) . | . . . Robot Analysis Total . | . . . Derelict Logs Recovered . | . . . Drone Launches . | . . . Drone Recoveries . | . . . Exploration | -11 -10 -9 ------------- Run | Yrd Mat Mat Turns Passed 680 | 110 388 182 Spaces Moved 416 | 116 199 101 Core 21 | 1 . 20 Treads . | . . . Legs 143 | . 115 28 Wheels 199 | 115 84 . Hover . | . . . Flight 53 | . . 53 Fastest Speed 34 | 50 80 34 Average Speed 100 | 79 103 117 Slowest Speed 200 | 80 120 200 Overloaded Moves . | . . . Propulsion Burnouts . | . . . Robots Hopped . | . . . Potential Cave-ins . | . . . Cave-ins Triggered . | . . . Exploration Rate (%) 15 | 4 32 10 Regions Visited 2 Branch Regions . Pre-discovered Areas . | . . . Known Exits Taken . | . . . Unknown Exits Taken 2 | 1 1 . Scrap Searched . | . . . Spaces Dug . | . . . Terrain Destroyed . | . . . Melee . | . . . Projectile . | . . . AOE . | . . . Terrain Rammed . | . . . Walls Destroyed . | . . . Machines Disabled . | . . . Actions | -11 -10 -9 --------- Run | Yrd Mat Mat Total 617 | 133 334 150 Wait 98 | . 86 12 Move 414 | 115 198 101 Hop . | . . . Pick Up 23 | 12 5 6 Fast Attach . | . . . Attach 14 | 6 2 6 Detach 1 | . 1 . Swap 6 | . 4 2 Drop 10 | . 2 8 Fire 50 | . 35 15 Melee . | . . . Ram . | . . . Kick 1 | . 1 . Crush . | . . . Escape Stasis . | . . . Rewire . | . . . Trap . | . . . Miscellaneous . | . . . Route ------- -11/Scrapyard -10/Materials -9/Materials History --------- Turn | Location | Event 20 | -11/Scrapyard | Discovered new exit (range 16) 111 | -11/Scrapyard | Entered Materials 314 | -10/Materials | Build established: Mutant 420 | -10/Materials | Core integrity fell below 50% 483 | -10/Materials | Discovered new exit (range 10) 499 | -10/Materials | Entered another Materials area 499 | -9/Materials | Evolved 2 slots: Propulsion x1, Utility x1 666 | -9/Materials | Core integrity fell below 50% 677 | -9/Materials | Core integrity fell below 20% 681 | -9/Materials | Destroyed by G-34 Mercenary with Small Laser Last Messages --------------- 00586_ Acquired 8 matter. 00594_ Dropped Lgt. Treads. 00595_ Dropped Sml. Storage Unit. 00596_ Dropped Lgt. Assault Rifle. 00614_ Acquired Sml. Storage Unit. 00617_ C-30 ARC bursts open, deploying its payload. 00617_ S-10 Pest unfolds itself. 00617_ Med. Laser destroyed. 00627_ Flight Unit destroyed. 00629_ Dropped Lrg. Storage Unit. 00639_ Flight Unit destroyed. 00641_ S-10 Pest destroyed. 00641_ Heat Sink destroyed. 00645_ Nuclear Reactor explodes. 00649_ Lgt. Ion Engine destroyed. 00650_ Flight Unit destroyed. 00658_ Sml. Laser destroyed. 00669_ Connecting with Terminal... 00669_ Current location identified: Materials Map ----- +----------------------------------------------------+ | ?????????????????????????????????????????????????? | | ?????????????????????????????????????????????????? | | ?????????????????????????????????????????????????? | | ?????????????????????????????????????????????????? | | ?????????????????????????????????????????????????? | | ?????????????????????????????????????????????????? | | ?????????????????????????????????????????????????? | | ?????????????????????????????????????????????????? | | ?????????????????????????????????????????????????? | | ?????????????????????????????????????????????????? | | ?????????????????????????????????????????????????? | | ?????????????????????????????????????????????????? | | ???????????????????????????? ??????????????????? | | ???????????????????????????? #?????????????????? | | ???????????????????????????? #?????????????????? | | ???????????????????????????? #?????????????????? | | ???????????????????????????# #?????????????????? | | ???????????????????????????# #?????????????????? | | ???????????????????????????# #?????????????????? | | ???????????????????????????+ +?????????????????? | | ???????????????????????????# #?????????????????? | | ???????????????????????????# #?????????????????? | | ????????????????????######## #?????????????????? | | ????????????????????# # #?????????????????? | | ????????????????????#""" # #?????????????????? | | ????????????????????#"T @ # #?????????????????? | | ????????????????????#""" sgga +?????????????????? | | ????????????????????# s # #?????????????????? | | ????????????????????# s # #??????????######## | | ?????????????????######/#### ##?????????# [ | | ?????????????????# [ #" ########### | | ?????????????????#""" !#%" == [ # | | ?????????????????#""" /" " [=%% # = | | ???????????????? """ # =!=%[# | | ???????????????# # ####### [ + """ "" | | ???????????????# ###+#######?# # """ "" | | ???????????????# # = #?# # """ "" | | ???????????????# # #?# ######## | | ???????????????# # #?# #??? | | ???????????????# ## #?# #??? | | ???????????????# ## """ """ #?# #??? | | ???????????????# # ## """ """ #?#########??? | | ???????????????############ """ """ #????????????? | | ??????????????????????????# #????????????? | | ??????????????????????????#########??????????????? | | ?????????????????????????????????????????????????? | | ?????????????????????????????????????????????????? | | ?????????????????????????????????????????????????? | | ?????????????????????????????????????????????????? | | | +----------------------------------------------------+ Best States ------------- Heat Dissipation 38 Energy Generation 10 Energy Capacity 250 Matter Stores 300 Matter Capacity 300 Sight Range 16 Terrain Scan Density 10 Evasion (%) 63 Item Schematics ----------------- None Robot Schematics ------------------ None Fabricated ------------ Nothing Repaired ---------- Nothing Studied --------- None Alien Tech Used ----------------- None Achievements -------------- None Challenges ------------ None Game ------ Seed InsulationFortressNanosword Manual? 0 Play Time 00:14:27 Cumulative 3.1 hours Start 2026.01.19 @ 18:29:22 End 2026.01.19 @ 18:41:17 Sessions 1 Manual Loads 0 Difficulty Rogue Special Mode None Game No. 5 Rogue 4 Adventurer 1 Explorer 0 Win Type - Total 0 Types 0/0/0/0/0/0/0/0/0/0 Lore% 1 Gallery% 6 Achievement% 5 Wizard Run 0 Options --------- Layout 1 ASCII 0 Keyboard 0 Movement Numpad Keybinds 0 Fullscreen 1 Font 32/SmallcapsGlow Map View 50x35 Zoom Use 0% Tactical HUD 1 Map Filters NONE Filters NONE Steam 1 RUN: 05fc825c-1ed8-4ef3-a80b-200b59123f5c